Cogmind - Beta 10.1 @@@ ROGUE MODE // 2020.10.27 @ 22:45:29 Player: W_W Result: Destroyed by Y-45 Defender with Beam Rifle Performance ------------- Evolutions (0) 0 Regions Visited (2) 400 Robots Destroyed (43) 215 Value Destroyed (620) 620 Prototype IDs (2) 40 Alien Tech Used (0) 0 Bonus (0) 0 TOTAL SCORE: 1275 Bonus ------- None Cogmind --------- Core Integrity 0/250 Matter 295/300 Energy 100/100 System Corruption 0% Temperature Cool (122) Movement Treading (180) Ox1 Location -10/Mines Parts ------- > --- POWER (1) -------- (None) > --- PROPULSION (2) --- Light Treads Light Treads > --- UTILITY (2) ------ Large Storage Unit High-capacity Storage Unit > --- WEAPON (2) ------- Light Assault Rifle > --- INVENTORY (18) --- Light Treads Aluminum Leg High-capacity Battery (400) High-capacity Matter Pod (200) ECM Suite EM Pulse Gun Beam Rifle Beam Rifle Beam Cannon Beam Cannon Beam Cannon Assault Rifle Assault Rifle Rocket Launcher Rocket Launcher Rocket Launcher Datajack Mining Laser Peak State ------------ > --- POWER ------------ Ion Engine > --- PROPULSION ------- Light Treads Light Treads > --- UTILITY ---------- Large Storage Unit High-capacity Storage Unit > --- WEAPON ----------- Beam Rifle Beam Rifle > --- INVENTORY -------- Light Ion Engine Light Treads Light Treads Large Storage Unit High-capacity Matter Pod EM Pulse Gun Beam Rifle Beam Cannon Beam Cannon Beam Cannon Assault Rifle Light Assault Rifle Light Assault Rifle Rocket Launcher Rocket Launcher Rocket Launcher Datajack Mining Laser [Rating: 11] Favorites ----------- Power Ion Engine Engine Ion Engine Propulsion Light Treads Treads Light Treads Utility Large Storage Unit Storage Large Storage Unit Weapon Beam Rifle Energy Gun Beam Rifle Energy Cannon Beam Cannon Ballistic Gun Light Assault Rifle Launcher Rocket Launcher Build | -11 -10 -10 ------- Run | Scr Mat Min Slots Evolved . | . . . Power . | . . . Propulsion . | . . . Utility . | . . . Weapon . | . . . Parts Attached 25 | 7 12 6 Power 3 | 2 . 1 Engine 3 | 2 . 1 Core . | . . . Reactor . | . . . Propulsion 7 | 2 3 2 Treads 7 | 2 3 2 Leg . | . . . Wheel . | . . . Hover . | . . . Flight . | . . . Utility 5 | 1 4 . Device . | . . . Storage 5 | 1 4 . Processor . | . . . Hackware . | . . . Protection . | . . . Artifact . | . . . Weapon 10 | 2 5 3 Energy Gun 5 | 2 2 1 Energy Cannon 1 | . 1 . Ballistic Gun 2 | . 1 1 Ballistic Cannon . | . . . Launcher 2 | . 1 1 Special Weapon . | . . . Impact Weapon . | . . . Slashing Weapon . | . . . Piercing Weapon . | . . . Special Melee Weapon . | . . . Unidentified Prototypes . | . . . Parts Lost 5 | . 2 3 Power 1 | . . 1 Propulsion . | . . . Utility . | . . . Weapon 4 | . 2 2 Highest Loss Streak 2 | . 1 2 Average Slot Usage (%) 99 | . 99 99 Engine 14 | . 14 14 Treads 28 | . 28 28 Storage 27 | . 27 28 Energy Gun 17 | . 20 14 Energy Cannon 2 | . 4 . Ballistic Gun 1 | . 3 . Launcher 5 | . . 12 Naked Turns . | . . . Heaviest Build 60 | 13 59 60 Greatest Support 40 | 40 40 40 Greatest Overweight (x) 4 | 4 1 2 Average Overweight (x) . | . . 1 Largest Inventory Capacity 18 | 6 18 18 Average Capacity 16 | 5 17 18 Most Carried 18 | 4 18 18 Average Carried 14 | 2 13 17 Final Capacity 18 | 6 18 18 Final Carried 18 | 4 18 18 Class Distribution -------------------- 59% | Mutant 40% | Scavenger-Mutant Dominant Class ---------------- Mutant | -10/Materials Scavenger-Mutant | -10/Mines Resources | -11 -10 -10 ----------- Run | Scr Mat Min Matter Collected 716 | 270 340 106 Remotely . | . . . Salvage Created 1131 | 337 582 212 Parts 68 | 20 39 9 Haulers Intercepted 2 | . 2 . Recyclers Shooed 1 | . 1 . Parts Field Recycled . | . . . Retrieved Matter . | . . . Parts Self-Destructed . | . . . Prevented . | . . . Kills | -11 -10 -10 ------- Run | Scr Mat Min Combat Hostiles Destroyed 22 | . 11 11 Guns 15 | . 7 8 Cannons 4 | . 4 . AOE 3 | . . 3 Classes Destroyed 10 | 3 5 2 Worker 4 | 4 . . Builder 2 | . 2 . Tunneler 10 | 9 1 . Hauler 2 | . 2 . Recycler 1 | 1 . . Watcher 2 | . 2 . Swarmer 5 | . 3 2 Grunt 10 | . 8 2 Sentry 1 | . . 1 Assembled 6 | . . 6 Best Kill Streak 4 | 4 4 4 Combat Bots Only 4 | . 4 4 Max Kills in Single Turn 2 | 1 2 1 Gunslinging . | . . . Exploded 1 | . . 1 Melee . | . . . Uniques/NPCs Destroyed . | . . . Combat | -11 -10 -10 -------- Run | Scr Mat Min Damage Taken 1255 | . 582 673 Core 257 | . 116 141 Absorbed by Shields . | . . . Core Remaining (%) 100 | 100 . . Volleys Fired 130 | 37 60 33 Largest 2 | 2 2 2 Hottest 121 | 100 112 121 Shots Fired 244 | 74 119 51 Gun 215 | 74 95 46 Cannon 24 | . 24 . Launcher 5 | . . 5 Special . | . . . Kinetic 24 | . 13 11 Thermal 215 | 74 106 35 Explosive 5 | . . 5 Electromagnetic . | . . . Robot Hit Streak 11 | 10 9 11 Robot Miss Streak 6 | 2 6 2 Penetration Max . | . . . Secondary Targets 4 | . 2 2 Max Gunslinging Chain 1 | . 1 1 Shots Hit Robots 161 | 45 78 38 Core Hits 63 | 15 28 20 Critical Hits . | . . . Critical Kills . | . . . Critical Parts Destroyed . | . . . Melee Attacks . | . . . Impact . | . . . Slashing . | . . . Piercing . | . . . Sneak Attacks . | . . . Combat Hostiles . | . . . Follow-up Attacks . | . . . Damage Inflicted 2285 | 542 1081 662 Guns 1756 | 542 727 487 Cannons 317 | . 317 . Explosions 146 | . . 146 Melee . | . . . Ramming 66 | . 37 29 Kinetic 137 | . 73 64 Thermal 1936 | 542 971 423 Explosive 146 | . . 146 Electromagnetic . | . . . Impact . | . . . Slashing . | . . . Piercing . | . . . Highest Corruption . | . . . Average Corruption . | . . . Corruption Purged . | . . . Overload Shots . | . . . Overflow Damage 5 | . 5 . Projectiles . | . . . Explosions . | . . . Melee 5 | . 5 . Knockbacks . | . . . Impact . | . . . Kinetic . | . . . Secondary . | . . . Self-Inflicted Damage 68 | . . 68 Shots 2 | . . 2 Rammed 7 | . 3 4 Targets Rammed 7 | . 3 4 Kicked . | . . . Crushed . | . . . Highest Temperature 428 | 390 417 428 Average Temperature 152 | 146 145 180 Received Heat Transfer 506 | . 267 239 Effects 12 | 3 5 4 Shutdowns 5 | 2 1 2 Energy Bleed 3 | 1 2 . Matter Decay 1 | . 1 . Short Circuit 1 | . . 1 Damage (minor) 2 | . 1 1 Siege Activations . | . . . Robots Corrupted . | . . . Combat Hostiles . | . . . Parts Fried . | . . . Impact Corruptions 2 | . 1 1 Robots Melted . | . . . Combat Hostiles . | . . . Parts Melted 8 | 2 3 3 Heat Transferred 5106 | 1591 2479 1036 Parts Sabotaged . | . . . Parts Stolen . | . . . Parts Stripped . | . . . Power Chain Reactions . | . . . Missiles Intercepted . | . . . Alert | -11 -10 -10 ------- Run | Scr Mat Min Peak Influence 259 | 70 259 115 Initial 45 | . 45 . Average 53 | 35 79 26 Maximum Alert Level 1 | . 1 . Low Security (%) 98 | 100 97 100 Level 1 1 | . 2 . Level 2 . | . . . Level 3 . | . . . Level 4 . | . . . Level 5 . | . . . High Security . | . . . Max Security . | . . . Squads Dispatched 3 | . 3 . Investigation . | . . . Extermination . | . . . Reinforcement 3 | . 3 . Assault . | . . . Garrison . | . . . Intercept . | . . . Construction Impeded . | . . . Haulers Reinforced . | . . . Stealth | -11 -10 -10 --------- Run | Scr Mat Min Distress Signals 2 | . 1 1 Communications Jammed . | . . . Distress Signals . | . . . Times Spotted 41 | . 29 12 Peak Tracking Total 5 | . 5 4 Tactical Retreats . | . . . Traps | -11 -10 -10 ------- Run | Scr Mat Min Traps Triggered . | . . . Indirectly . | . . . Trap Hack Attempts . | . . . Triggered . | . . . Disarmed . | . . . Reprogrammed . | . . . Reused . | . . . Traps Extracted . | . . . Installed . | . . . Triggered . | . . . Machines | -11 -10 -10 ---------- Run | Scr Mat Min Machines Disabled 2 | . . 2 Max in Single Turn 2 | . . 2 Machines Sabotaged . | . . . Garrisons Compromised . | . . . Overloaded Fab Kills . | . . . Fab Network Shutdowns . | . . . Hacking | -11 -10 -10 --------- Run | Scr Mat Min Machines Accessed 6 | . 6 . Terminals 3 | . 3 . Fabricators . | . . . Repair Stations 1 | . 1 . Recycling Units 2 | . 2 . Scanalyzers . | . . . Garrison Access . | . . . Total Hacks 18 | . 18 . Successful 12 | . 12 . Failed 6 | . 6 . Catastrophic . | . . . Database Lockouts . | . . . Manual . | . . . Terminals 11 | . 11 . Fabricators . | . . . Repair Stations 2 | . 2 . Recycling Units 5 | . 5 . Scanalyzers . | . . . Garrison Access . | . . . Terminal Hacks 7 | . 7 . Robot Analysis 1 | . 1 . Prototype ID Bank 1 | . 1 . Emergency Access Points 1 | . 1 . Alert Level 2 | . 2 . Locate Traps 1 | . 1 . Dispatch Records 1 | . 1 . Fabricator Hacks . | . . . Repair Station Hacks 2 | . 2 . Scan Component 1 | . 1 . Repair 1 | . 1 . Recycling Unit Hacks 3 | . 3 . Report Inventory 2 | . 2 . Retrieve Components 1 | . 1 . Scanalyzer . | . . . Garrison Access Hacks . | . . . Unauthorized Hacks . | . . . Terminals . | . . . Fabricators . | . . . Repair Stations . | . . . Recycling Units . | . . . Scanalyzers . | . . . Garrison Access . | . . . Data Cores Recovered . | . . . Used . | . . . Hacking Detections 4 | . 4 . Full Trace Events . | . . . Feedback Events . | . . . Feedback Blocked . | . . . Robot Schematics Acquired . | . . . Robots Built . | . . . Matter . | . . . Time . | . . . Total Robot Build Rating . | . . . Part Schematics Acquired . | . . . Parts Built . | . . . Matter . | . . . Time . | . . . Total Part Build Rating . | . . . Parts Repaired 1 | . 1 . Time 26 | . 26 . Parts Recycled . | . . . Recycled Matter . | . . . Retrieved Matter . | . . . Retrieved Components 2 | . 2 . Parts Scanalyzed . | . . . Part Schematics Acquired . | . . . Parts Damaged . | . . . Bothacking | -11 -10 -10 ------------ Run | Scr Mat Min Used RIF Installer . | . . . Robots Hacked . | . . . Non-combat . | . . . Combat . | . . . Robot Hacks Applied . | . . . Relay Couplers Released . | . . . Robots Rewired . | . . . Allies Hacked . | . . . Hacks Repelled . | . . . Allies | -11 -10 -10 -------- Run | Scr Mat Min Total Allies . | . . . Largest Group . | . . . Highest-Rated Group . | . . . Highest-Rated Ally . | . . . Total Orders . | . . . Ally Attacks . | . . . Total Damage . | . . . Kills . | . . . Allies Corrupted . | . . . Allies Melted . | . . . Intel | -11 -10 -10 ------- Run | Scr Mat Min Robot Analysis Total 1 | . 1 . Derelict Logs Recovered 1 | . . 1 Drone Launches . | . . . Drone Recoveries . | . . . Exploration | -11 -10 -10 ------------- Run | Scr Mat Min Turns Passed 3416 | 343 1657 1416 Spaces Moved 1584 | 137 777 670 Core 16 | 16 . . Treads 1568 | 121 777 670 Legs . | . . . Wheels . | . . . Hover . | . . . Flight . | . . . Fastest Speed 50 | 50 160 180 Average Speed 178 | 159 179 180 Slowest Speed 250 | 250 180 200 Overloaded Moves . | . . . Propulsion Burnouts . | . . . Robots Hopped . | . . . Cave-ins Triggered . | . . . Exploration Rate (%) 68 | 6 99 99 Regions Visited 2 Branch Regions 1 Pre-discovered Areas . | . . . Known Exits Taken . | . . . Unknown Exits Taken 2 | 1 1 . Scrap Searched . | . . . Spaces Dug . | . . . Terrain Destroyed 45 | . . 45 Melee . | . . . Projectile . | . . . AOE 45 | . . 45 Terrain Rammed . | . . . Walls Destroyed . | . . . Machines Disabled . | . . . Actions | -11 -10 -10 --------- Run | Scr Mat Min Total 1931 | 183 924 824 Wait 137 | . 31 106 Move 1582 | 136 776 670 Hop . | . . . Pick Up 35 | 3 30 2 Fast Attach 9 | 6 3 . Attach 4 | . 3 1 Detach . | . . . Swap 12 | 1 6 5 Drop 15 | . 12 3 Fire 130 | 37 60 33 Melee . | . . . Ram . | . . . Kick . | . . . Crush 7 | . 3 4 Escape Stasis . | . . . Rewire . | . . . Trap . | . . . Miscellaneous . | . . . Route ------- -11/Scrapyard -10/Materials (discovered 4 exits: [*Mat x3] / [*Min]) -10/Mines (discovered 2 exits: [*Mat x2]) History --------- Turn | Location | Event 24 | -11/Scrapyard | Discovered new exit (range 16) 344 | -11/Scrapyard | Entered Materials 345 | -10/Materials | Build established: Mutant 620 | -10/Materials | Discovered new exit (range 10) 858 | -10/Materials | Discovered new exit (range 10) 1278 | -10/Materials | Discovered new exit (range 4) 1365 | -10/Materials | Repaired Hcp. Storage Unit 1977 | -10/Materials | Discovered new exit (range 7) 2001 | -10/Materials | Entered Mines 2004 | -10/Mines | Core integrity fell below 50% 2059 | -10/Mines | Assembled infested the area 2324 | -10/Mines | Build established: Scavenger-Mutant 2680 | -10/Mines | Discovered new exit (range 6) 2830 | -10/Mines | Learned Materials terminal intel 3163 | -10/Mines | Discovered new exit (range 8) 3385 | -10/Mines | Core integrity fell below 20% 3417 | -10/Mines | Destroyed by Y-45 Defender with Beam Rifle Last Messages --------------- 03200_ K-01 Serf system terminally corrupted. 03232_ Slammed into R-06 Scavenger. 03244_ Slammed into K-01 Serf. 03273_ Laser Drill disabled. 03275_ S-10 Pest destroyed. 03283_ Acquired 6 matter. 03287_ U-05 Engineer lays Concrete. 03290_ U-05 Engineer builds a Wall. 03295_ Acquired 16 matter. 03331_ Acquired 11 matter. 03369_ Acquired 17 matter. 03391_ U-05 Engineer lays Concrete. 03398_ U-05 Engineer builds a Door. 03402_ U-05 Engineer builds a Wall. 03406_ U-05 Engineer lays Concrete. 03406_ Y-45 Defender destroyed. 03406_ Switching to secondary target: Y-45 Defender. 03407_ U-05 Engineer lays Concrete. 03408_ Particle Gun destroyed. 03411_ Ion Engine destroyed. Map ----- +----------------------------------------------------+ | ?????????????????????????## ##??????# #?????? | | ?????????????????????????# #??????# ##????? | | ?????????????????????????# #??????# ##???? | | ?????????????????????????# #??????## ##??? | | ?????????????????????????## #??????## #??? | | ???????????????????######## *#??????# ##?? | | ???????????????????# %%#??????# ##? | | ???????????????????# ####### ==##??????# ## | | ???????????????????# #?????######???????## # | | ????????????######## #???????????????????##### # | | ???????????## ## #???????????????????????## | | ???????????# #????????????????????????# | | ???????????# ######???????????###??????????# | | ???????????## #????????????????# ##????###### # | | ???????????### #????????????????# ###### ## # | | ##?????????### ##????????????????# # | | #???????????# #?????????????????## # | | #???????????# #?????????######???### # | | #???????????# #?????##### #?????##### ## | | #???????????# #????##[!# ##????????## #? | | ########????# ####?#"!] #?????????#### #? | | #????# ### ##????????????## #? | | ####### #????# #?? #??????????????# #? | | ####??# #????# " #???? ! #??????????????# #? | | # ##?# #????## ##????##%Y #?????????????## ## | | ###*#?????# #?????#@=! ##???????####### # | | ##=####### ##????# ##?????## # | | # !!%*! % !% ##???## ##????# # | | # ######## % #????## ###??# # | | # ##??????# ! #?????# #### ### ## | | ##???????## % ##????## != ## % ##?# ##? | | ##?????????### #?????# = ! ####??# #?? | | ##########????# #?????#% |* ##?????# #?? | | # ###### ##????# ## ###??????# #?? | | ## " ##= * ##??## #######????????# #?? | | ## # ### #### ##??????????????# #?? | | ## * # ## %! ##???????????????# #?? | | # # ## %!=%##????????????????# #?? | | ?# ###### *%!%%##???????????????### #?? | | ?# ###????## ##%#????????????????# #?? | | ## ##??????#####=#????????????????# ###?? | | # ##???????? ?#=#####????????????# #???? | | ####??????????#?#%%%%%############## #???? | | ######????????????????#####%%=%%!%=!=% #???? | | ##????????????????????????#[################???? | | ##????????????????#####??#[#####??????????????? | | ##??????????????##= ##?#%## ####???????????? | | #######???######!=!%|###%# ##??????????? | | ## ##?## ## %% ! |%!!| #??????????? | | ### ! = !%!% ###????????? | +----------------------------------------------------+ Best States ------------- Heat Dissipation 25 Energy Generation 10 Energy Capacity 250 Matter Stores 300 Matter Capacity 300 Sight Range 16 Terrain Scan Density 10 Evasion (%) 40 Recoil Reduction 2 Item Schematics ----------------- None Robot Schematics ------------------ None Fabricated ------------ Nothing Alien Tech Used ----------------- None Achievements -------------- None Challenges ------------ None Game ------ Seed RecyclingExplosivePrototype Manual? 0 Play Time 00:19:32 Cumulative 60.5 hours Start 2020.10.27 @ 22:01:02 End 2020.10.27 @ 22:45:29 Sessions 1 Manual Loads 0 Difficulty Rogue Special Mode None Game No. 57 Rogue 57 Adventurer 0 Explorer 0 Win Type - Total 0 Types 0/0/0/0/0/0/0/0/0 Lore% 29 Gallery% 30 Achievement% 26 Wizard Run 0 Options --------- ASCII 0 Keyboard 0 Movement Numpad Keybinds 0 Fullscreen 1 Font 18/SmallcapsGlow Map View 76x50 Tactical HUD 1 Map Filters NONE Filters NONE Steam 1 RUN: cc150a8c-5c35-475d-99f6-a1b0bdfdb756